fUSD/lending_fUSD_20260515
["ID","MTS","AMOUNT","RATE_DAILY","PERIOD"]
[422337816,1778845832000,-300.0,0.00014139,2]
[422337809,1778845832000,-531.73649619,0.00013499,2]
[422337810,1778845832000,-1334.56850381,0.00013499,2]
[422337812,1778845832000,-150.0,0.00013768,2]
[422337811,1778845832000,-150.0,0.00013633,2]
[422337814,1778845832000,-300.0,0.00014139,2]
[422337813,1778845832000,-250.0,0.00014,2]
[422337818,1778845832000,-300.0,0.00014849,2]
[422337815,1778845832000,-300.0,0.00014139,2]
[422337819,1778845832000,-395.4315,0.00014894,2]
[422337826,1778845832000,-4624.82760629,0.00014994,2]
[422337821,1778845832000,-500.0,0.00014993,2]
[422337820,1778845832000,-500.0,0.00014993,2]
[422337822,1778845832000,-603.34873986,0.00014993,2]
[422337827,1778845832000,-508.0,0.00014994,2]
[422337823,1778845832000,-500.0,0.00014993,2]
[422337825,1778845832000,-165424.29143851,0.00014994,2]
[422337817,1778845832000,-300.0,0.00014139,2]
[422337824,1778845832000,-49858.08237981,0.00014994,2]
[422337830,1778845838000,-603.22941727,0.00014994,2]
[422337832,1778845838000,-808.55672583,0.00014994,2]
[422337831,1778845838000,-979.47501245,0.00014994,2]
[422338008,1778845841000,-1041.39034162,0.00014994,2]
[422338009,1778845843000,-7350.00005919,0.00014994,2]
[422338010,1778845843000,-1612.6,0.00014994,2]
[422338036,1778845846000,-1575.74995239,0.00014994,2]
[422338129,1778846039000,263.87086759,0.00029115,120]
[422338130,1778846106000,180.0,0.00027543,120]
[422338131,1778846186000,2120.48715726,0.0003,120]
[422338133,1778846365000,201.5013898,0.00029047,120]
[422338134,1778846463000,163.09,0.00028381,120]
[422338137,1778846625000,500.0,0.0003013,120]
[422338139,1778846815000,500.0,0.00029999,120]
[422338138,1778846815000,500.0,0.00028999,120]
[422338140,1778846831000,500.0,0.00028999,120]
[422338143,1778846832000,639.98009813,0.00030129,120]
[422338142,1778846832000,500.0,0.00030129,120]
[422338141,1778846832000,500.0,0.00029999,120]
[422338186,1778847033000,-113.11670791,0.00013987,2]
[422338190,1778847033000,-36.88329209,0.00013987,2]
[422338193,1778847033000,-480.0,0.00013988,2]
[422338199,1778847033000,-2773.35981057,0.0001399,2]
[422338196,1778847033000,-500.41136126,0.0001399,2]
[422338202,1778847033000,-3681.6755141,0.0001399,2]
[422338212,1778847033000,-380.68182096,0.0001399,2]
[422338227,1778847033000,-150.0,0.00014237,2]
[422338210,1778847033000,-415.78432906,0.0001399,2]
[422338219,1778847033000,-12315.45551757,0.0001399,2]
[422338223,1778847033000,-166.66,0.00014048,2]
[422338208,1778847033000,-501.55199785,0.0001399,2]
[422338221,1778847033000,-333.73,0.00014031,2]
[422338217,1778847033000,-674.06681493,0.0001399,2]
[422338174,1778847033000,-82.76329209,0.00013757,2]
[422338214,1778847033000,-12862.6295069,0.0001399,2]
[422338177,1778847033000,-166.84,0.00013857,2]
[422338150,1778847033000,-150.0,0.00013488,2]
[422338183,1778847033000,-596.62,0.0001389,2]
[422338225,1778847033000,-166.66,0.00014223,2]
[422338146,1778847033000,-462.0422,0.00013399,2]
[422338147,1778847033000,-142.18283791,0.00013488,2]
[422338149,1778847033000,-7.81716209,0.00013488,2]
[422338152,1778847033000,-150.0,0.00013488,2]
[422338151,1778847033000,-150.0,0.00013488,2]
[422338159,1778847033000,-200.0,0.00013699,2]
[422338180,1778847033000,-166.66,0.00013874,2]
[422338157,1778847033000,-166.66,0.00013699,2]
[422338163,1778847033000,-7.52283791,0.00013729,2]
[422338156,1778847033000,-150.0,0.00013488,2]
[422338161,1778847033000,-568.0,0.00013728,2]
[422338154,1778847033000,-150.0,0.00013488,2]
[422338165,1778847033000,-192.47716209,0.00013729,2]
[422338167,1778847033000,-150.0,0.00013737,2]
[422338169,1778847033000,-118.74534173,0.00013757,2]
[422338153,1778847033000,-150.0,0.00013488,2]
[422338230,1778847033000,-333.73,0.00014381,2]
[422338235,1778847033000,-150.0,0.00014737,2]
[422338236,1778847033000,-2500.0,0.00014739,2]
[422338253,1778847033000,-5272.74083985,0.000149,2]
[422338249,1778847033000,-153.53198692,0.000149,2]
[422338250,1778847033000,-44174.1317824,0.000149,2]
[422338252,1778847033000,-347.51259041,0.000149,2]
[422338267,1778847033000,-188.21085343,0.00014986,2]
[422338258,1778847033000,-544.69472921,0.000149,2]
[422338259,1778847033000,-260.75578352,0.0001492,2]
[422338251,1778847033000,-1082.89,0.000149,2]
[422338256,1778847033000,-9230.13972245,0.000149,2]
[422338262,1778847033000,-2380.207477,0.00014941,2]
[422338260,1778847033000,-5272.74083983,0.00014921,2]
[422338261,1778847033000,-2824.66657701,0.00014921,2]
[422338263,1778847033000,-2892.53336283,0.00014941,2]
[422338264,1778847033000,-260.75578352,0.00014941,2]
[422338266,1778847033000,-500.0,0.00014941,2]
[422338231,1778847033000,-166.66,0.00014398,2]
[422338268,1778847033000,-154.13236171,0.00014986,2]
[422338248,1778847033000,-260.75578352,0.000149,2]
[422338257,1778847033000,-2689.82304361,0.000149,2]
[422338246,1778847033000,-347.51259041,0.000149,2]
[422338265,1778847033000,-2824.66657701,0.00014941,2]
[422338247,1778847033000,-347.51259041,0.000149,2]
[422338234,1778847033000,-333.73,0.00014732,2]
[422338237,1778847033000,-250.0,0.00014739,2]
[422338233,1778847033000,-166.66,0.00014573,2]
[422338232,1778847033000,-150.0,0.00014487,2]
[422338229,1778847033000,-150.0,0.00014237,2]
[422338239,1778847033000,-150.0,0.00014899,2]
[422338238,1778847033000,-347.51259048,0.00014899,2]
[422338242,1778847033000,-347.51259041,0.00014899,2]
[422338241,1778847033000,-347.51259041,0.00014899,2]
[422338244,1778847033000,-347.51259041,0.000149,2]
[422338255,1778847033000,-2824.66657701,0.000149,2]
[422338254,1778847033000,-1536.41358147,0.000149,2]
[422338243,1778847033000,-347.51259041,0.00014899,2]
[422338240,1778847033000,-347.51259041,0.00014899,2]
[422338245,1778847033000,-347.51259041,0.000149,2]
[422338282,1778847034000,-360.71447996,0.00014994,2]
[422338277,1778847034000,-683.1,0.00014993,2]
[422338281,1778847034000,-163.38,0.00014994,2]
[422338276,1778847034000,-500.0,0.00014993,2]
[422338279,1778847034000,-311.28747582,0.00014994,2]
[422338270,1778847034000,-256.94184861,0.00014986,2]
[422338274,1778847034000,-315.07199014,0.0001499,2]
[422338280,1778847034000,-151.0,0.00014994,2]
[422338271,1778847034000,-239.69471061,0.00014986,2]
[422338273,1778847034000,-315.07199014,0.0001499,2]
[422338272,1778847034000,-202.55602771,0.00014986,2]
[422338269,1778847034000,-210.36484867,0.00014986,2]
[422338295,1778847034000,-666.0,0.00014999,2]
[422338275,1778847034000,-315.07199014,0.0001499,2]
[422338284,1778847034000,-1096.81108638,0.00014999,5]
[422338278,1778847034000,-500.0,0.00014993,2]
[422338285,1778847034000,-666.0,0.00014999,2]
[422338298,1778847034000,-113343.60973416,0.00015,2]
[422338297,1778847034000,-50210.17152152,0.00015,2]
[422338300,1778847034000,-2447.86120998,0.00015,2]
[422338299,1778847034000,-47193.19543988,0.00015,2]
[422338293,1778847034000,-300.0,0.00014999,2]
[422338289,1778847034000,-300.0,0.00014999,2]
[422338290,1778847034000,-666.0,0.00014999,2]
[422338288,1778847034000,-666.0,0.00014999,2]
[422338292,1778847034000,-300.0,0.00014999,2]
[422338294,1778847034000,-666.0,0.00014999,2]
[422338283,1778847034000,-511.13281716,0.00014999,5]
[422338287,1778847034000,-300.0,0.00014999,2]
[422338286,1778847034000,-300.0,0.00014999,2]
[422338296,1778847034000,-300.0,0.00014999,2]
[422338291,1778847034000,-666.0,0.00014999,2]
[422338303,1778847038000,-19689.0945426,0.00015,2]
[422338302,1778847038000,-1478.63014659,0.00015,2]
[422338305,1778847038000,-893.84974551,0.00015,2]
[422338306,1778847038000,-7295065.40037969,0.00015,2]
[422338304,1778847038000,-2300.86082917,0.00015,2]
[422338308,1778847038000,-288.18867524,0.00015,2]
[422338310,1778847038000,-4144.1699421,0.00015,2]
[422338311,1778847038000,-1243.80579835,0.00015,2]
[422338307,1778847038000,-12100.42312434,0.00015,2]
[422338309,1778847038000,-35553.78423795,0.00015,2]
[422338335,1778847042000,-321.992,0.00015,2]
[422338333,1778847042000,-3424.784369,0.00015,2]
[422338334,1778847042000,-571.95286726,0.00015,2]
[422338357,1778847044000,-50045.49395975,0.00015,2]
[422338356,1778847044000,-10990.5186458,0.00015,2]
[422338355,1778847044000,-8902.771527,0.00015,2]
[422338364,1778847046000,-10313.14997363,0.00015,2]
[422338362,1778847046000,-543.90285893,0.00015,2]
[422338363,1778847046000,-636.67659128,0.00015,2]
[422338365,1778847046000,-974.9999998,0.00015,2]
[422338367,1778847046000,-8061.84968799,0.00015,2]
[422338368,1778847046000,-1824.69378239,0.00015,2]
[422338366,1778847046000,-807.0,0.00015,2]
[422338491,1778847333000,500.0,0.00028999,120]
[422338493,1778847358000,151.0,0.0002899,120]
[422338494,1778847635000,282.10194572,0.00029251,120]
[422338496,1778847869000,158.59,6.934e-05,2]
[422338498,1778847949000,1184.0,0.00030137,120]
[422338512,1778848231000,-500.0,0.00013299,2]
[422338515,1778848231000,-187.0,0.00013487,2]
[422338513,1778848231000,-1200.0,0.00013486,2]
[422338514,1778848231000,-1200.0,0.00013487,2]
[422338526,1778848231000,-150.14584826,0.00013488,2]
[422338521,1778848231000,-150.0,0.00013488,2]
[422338520,1778848231000,-150.0,0.00013488,2]
[422338511,1778848231000,-500.0,0.00013031,2]
[422338530,1778848231000,-150.0,0.00013488,2]
[422338529,1778848231000,-150.0,0.00013488,2]
[422338519,1778848231000,-150.0,0.00013488,2]
[422338510,1778848231000,-150.0,0.00012998,2]
[422338516,1778848231000,-300.0,0.00013487,2]
[422338517,1778848231000,-150.0,0.00013488,2]
[422338507,1778848231000,-740.562662,0.00012922,2]
[422338509,1778848231000,-4134.39,0.00012987,2]
[422338508,1778848231000,-2229.53,0.00012956,2]
[422338506,1778848231000,-60.38240359,0.00012887,2]
[422338505,1778848231000,-179.9800116,0.00012887,2]
[422338504,1778848231000,-250.0,0.00011291,2]
[422338503,1778848231000,-7.59,0.00011291,2]
[422338502,1778848231000,-242.41,0.00011291,2]
[422338501,1778848231000,-250.0,0.00010778,2]
[422338500,1778848231000,-158.59,0.00010264,2]
[422338518,1778848231000,-150.18576381,0.00013488,2]
[422338528,1778848231000,-150.03492144,0.00013488,2]
[422338523,1778848231000,-150.46696442,0.00013488,2]
[422338522,1778848231000,-150.0,0.00013488,2]
[422338531,1778848231000,-150.0,0.00013488,2]
[422338547,1778848231000,-2751.91,0.00013657,2]
[422338553,1778848231000,-719.64,0.00013699,2]
[422338550,1778848231000,-150.0,0.00013675,2]
[422338544,1778848231000,-150.0,0.00013638,2]
[422338554,1778848231000,-150.0,0.00013718,2]
[422338549,1778848231000,-150.0,0.00013672,2]
[422338548,1778848231000,-150.0,0.00013657,2]
[422338552,1778848231000,-166.66,0.00013699,2]
[422338546,1778848231000,-150.0,0.00013654,2]
[422338545,1778848231000,-150.0,0.00013649,2]
[422338543,1778848231000,-2000.0,0.00013634,2]
[422338551,1778848231000,-150.0,0.00013695,2]
[422338539,1778848231000,-158.59,0.00013595,2]
[422338537,1778848231000,-150.0,0.0001358,2]
[422338524,1778848231000,-150.0,0.00013488,2]
[422338533,1778848231000,-2434.15,0.0001353,2]
[422338540,1778848231000,-150.0,0.00013603,2]
[422338534,1778848231000,-200.0,0.0001353,2]
[422338532,1778848231000,-150.0,0.00013511,2]
[422338542,1778848231000,-150.0,0.00013626,2]
[422338535,1778848231000,-150.0,0.00013534,2]
[422338536,1778848231000,-150.0,0.00013557,2]
[422338538,1778848231000,-929.1,0.0001359,2]
[422338541,1778848231000,-150.0,0.00013624,2]
[422338525,1778848231000,-150.0,0.00013488,2]
[422338583,1778848232000,-150.0,0.00013995,2]
[422338586,1778848232000,-150.0,0.00014018,2]
[422338585,1778848232000,-250.0,0.00014,2]
[422338587,1778848232000,-150.0,0.00014033,2]
[422338589,1778848232000,-166.66,0.00014045,2]
[422338582,1778848232000,-150.0,0.00013987,2]
[422338590,1778848232000,-150.0,0.0001405,2]
[422338581,1778848232000,-150.0,0.00013987,2]
[422338595,1778848232000,-150.0,0.00014087,2]
[422338584,1778848232000,-2751.91,0.00013998,2]
[422338591,1778848232000,-196.394728,0.00014053,2]
[422338592,1778848232000,-150.0,0.00014064,2]
[422338596,1778848232000,-150.0,0.00014107,2]
[422338597,1778848232000,-150.0,0.0001411,2]
[422338594,1778848232000,-150.0,0.00014087,2]
[422338598,1778848232000,-150.0,0.00014133,2]
[422338599,1778848232000,-150.0,0.00014154,2]
[422338602,1778848232000,-150.0,0.00014169,2]
[422338600,1778848232000,-150.0,0.00014156,2]
[422338601,1778848232000,-167.73,0.00014161,2]
[422338604,1778848232000,-150.0,0.00014202,2]
[422338580,1778848232000,-150.0,0.00013972,2]
[422338593,1778848232000,-500.0,0.00014084,2]
[422338579,1778848232000,-500.0,0.00013952,2]
[422338567,1778848232000,-150.0,0.00013857,2]
[422338578,1778848232000,-150.0,0.00013949,2]
[422338556,1778848232000,-2448.61,0.00013726,2]
[422338566,1778848232000,-150.0,0.00013834,2]
[422338555,1778848232000,-445.17061352,0.00013721,2]
[422338559,1778848232000,-150.0,0.0001376,2]
[422338557,1778848232000,-150.0,0.00013737,2]
[422338561,1778848232000,-150.0,0.00013787,2]
[422338560,1778848232000,-150.0,0.00013764,2]
[422338562,1778848232000,-150.0,0.00013787,2]
[422338564,1778848232000,-150.0,0.0001381,2]
[422338565,1778848232000,-150.0,0.00013821,2]
[422338588,1778848232000,-150.0,0.00014041,2]
[422338563,1778848232000,-500.0,0.0001381,2]
[422338569,1778848232000,-214.997284,0.00013866,2]
[422338568,1778848232000,-150.0,0.00013862,2]
[422338577,1778848232000,-150.0,0.00013937,2]
[422338574,1778848232000,-460.16250347,0.00013908,21]
[422338575,1778848232000,-160.55621559,0.00013908,21]
[422338570,1778848232000,-166.66,0.00013872,2]
[422338571,1778848232000,-150.0,0.0001388,2]
[422338573,1778848232000,-150.0,0.00013903,2]
[422338576,1778848232000,-150.0,0.00013926,2]
[422338572,1778848232000,-150.0,0.00013896,2]
[422338614,1778848232000,-150.0,0.00014249,2]
[422338603,1778848232000,-150.0,0.00014179,2]
[422338558,1778848232000,-150.0,0.00013741,2]
[422338605,1778848232000,-166.66,0.00014218,2]
[422338636,1778848232000,-150.0,0.00014487,2]
[422338638,1778848232000,-150.0,0.00014502,2]
[422338646,1778848232000,-150.0,0.00014612,2]
[422338635,1778848232000,-150.0,0.00014487,2]
[422338642,1778848232000,-166.66,0.00014564,2]
[422338639,1778848232000,-150.0,0.00014525,2]
[422338637,1778848232000,-167.0,0.000145,2]
[422338645,1778848232000,-150.0,0.00014594,2]
[422338643,1778848232000,-150.0,0.00014571,2]
[422338641,1778848232000,-150.0,0.00014548,2]
[422338630,1778848232000,-150.0,0.00014424,2]
[422338644,1778848232000,-150.0,0.00014578,2]
[422338649,1778848232000,-150.0,0.00014653,2]
[422338647,1778848232000,-150.0,0.00014617,2]
[422338650,1778848232000,-150.0,0.00014664,2]
[422338653,1778848232000,-150.0,0.00014687,2]
[422338651,1778848232000,-2751.91,0.00014681,2]
[422338655,1778848232000,-150.0,0.0001471,2]
[422338654,1778848232000,-1800.73837474,0.000147,2]
[422338656,1778848232000,-150.0,0.00014714,2]
[422338652,1778848232000,-150.0,0.00014687,2]
[422338612,1778848232000,-150.0,0.00014237,2]
[422338648,1778848232000,-150.0,0.0001464,2]
[422338632,1778848232000,-150.0,0.00014441,2]
[422338640,1778848232000,-150.0,0.00014537,2]
[422338629,1778848232000,-150.0,0.0001441,2]
[422338607,1778848232000,-150.0,0.00014225,2]
[422338634,1778848232000,-150.0,0.00014479,2]
[422338606,1778848232000,-222.09,0.00014219,2]
[422338609,1778848232000,-150.0,0.00014237,2]
[422338610,1778848232000,-150.0,0.00014237,2]
[422338613,1778848232000,-150.0,0.00014237,2]
[422338611,1778848232000,-150.0,0.00014237,2]
[422338608,1778848232000,-500.0,0.00014226,2]
[422338616,1778848232000,-150.0,0.00014272,2]
[422338617,1778848232000,-150.0,0.00014295,2]
[422338618,1778848232000,-150.0,0.00014305,2]
[422338619,1778848232000,-150.0,0.00014318,2]
[422338615,1778848232000,-159.66,0.00014271,2]
[422338628,1778848232000,-166.66,0.00014391,2]
[422338623,1778848232000,-150.0,0.00014341,2]
[422338620,1778848232000,-150.0,0.0001432,2]
[422338622,1778848232000,-2751.91,0.0001434,2]
[422338625,1778848232000,-150.0,0.00014364,2]
[422338626,1778848232000,-150.0,0.00014387,2]
[422338624,1778848232000,-500.0,0.00014358,2]
[422338627,1778848232000,-150.0,0.00014387,2]
[422338631,1778848232000,-150.0,0.00014433,2]
[422338621,1778848232000,-165.85,0.0001433,2]
[422338633,1778848232000,-150.0,0.00014456,2]
[422338696,1778848233000,-150.0,0.00014986,2]
[422338692,1778848233000,-3415.35225699,0.000149,2]
[422338691,1778848233000,-171.70359265,0.000149,2]
[422338690,1778848233000,-7515.6456345,0.000149,2]
[422338684,1778848233000,-907.54489278,0.000149,2]
[422338686,1778848233000,-1526.46496985,0.000149,2]
[422338687,1778848233000,-5000.0,0.000149,2]
[422338685,1778848233000,-1241.28318272,0.000149,2]
[422338694,1778848233000,-150.0,0.0001494,2]
[422338688,1778848233000,-42263.51323372,0.000149,2]
[422338693,1778848233000,-150.0,0.00014917,2]
[422338708,1778848233000,-714.61,0.00014999,2]
[422338700,1778848233000,-150.0,0.00014986,2]
[422338699,1778848233000,-150.0,0.00014986,2]
[422338698,1778848233000,-150.0,0.00014986,2]
[422338697,1778848233000,-150.0,0.00014986,2]
[422338702,1778848233000,-150.0,0.00014986,2]
[422338710,1778848233000,-714.61,0.00014999,2]
[422338701,1778848233000,-150.0,0.00014986,2]
[422338703,1778848233000,-150.0,0.00014986,2]
[422338704,1778848233000,-1000.0,0.00014993,2]
[422338705,1778848233000,-151.0,0.00014997,2]
[422338683,1778848233000,-330.50441725,0.000149,2]
[422338695,1778848233000,-150.0,0.00014963,2]
[422338681,1778848233000,-860.5966,0.000149,2]
[422338659,1778848233000,-24408.9818,0.0001475,2]
[422338682,1778848233000,-186.80573571,0.000149,2]
[422338657,1778848233000,-150.0,0.00014733,2]
[422338707,1778848233000,-234.66857943,0.00014999,2]
[422338669,1778848233000,-150.0,0.0001482,2]
[422338658,1778848233000,-150.0,0.00014737,2]
[422338661,1778848233000,-271.0606501,0.0001475,2]
[422338664,1778848233000,-255.0,0.00014777,2]
[422338667,1778848233000,-150.0,0.00014799,2]
[422338665,1778848233000,-150.0,0.00014779,2]
[422338663,1778848233000,-166.0,0.00014774,2]
[422338662,1778848233000,-150.0,0.00014756,2]
[422338668,1778848233000,-150.0,0.00014802,2]
[422338689,1778848233000,-5534.4002,0.000149,2]
[422338660,1778848233000,-17237.1533,0.0001475,2]
[422338670,1778848233000,-150.0,0.00014825,2]
[422338671,1778848233000,-1680.0,0.00014835,2]
[422338673,1778848233000,-150.0,0.00014848,2]
[422338672,1778848233000,-150.0,0.00014836,2]
[422338674,1778848233000,-29964.16918207,0.0001485,2]
[422338676,1778848233000,-150.0,0.00014871,2]
[422338680,1778848233000,-2000.0,0.00014899,2]
[422338679,1778848233000,-2500.0,0.00014899,2]
[422338677,1778848233000,-162.0,0.0001488,2]
[422338675,1778848233000,-150.0,0.0001485,2]
[422338678,1778848233000,-150.0,0.00014894,2]
[422338666,1778848233000,-420.0,0.00014783,2]
[422338709,1778848233000,-714.61,0.00014999,2]
[422338727,1778848233000,-714.61,0.00014999,2]
[422338712,1778848233000,-714.61,0.00014999,2]
[422338744,1778848233000,-639.18,0.00014999,2]
[422338742,1778848233000,-639.18,0.00014999,2]
[422338706,1778848233000,-500.0,0.00014999,2]
[422338741,1778848233000,-639.18,0.00014999,2]
[422338746,1778848233000,-639.18,0.00014999,2]
[422338754,1778848233000,-639.18,0.00014999,2]
[422338751,1778848233000,-500.0,0.00014999,2]
[422338755,1778848233000,-500.0,0.00014999,2]
[422338748,1778848233000,-639.18,0.00014999,2]
[422338749,1778848233000,-500.0,0.00014999,2]
[422338747,1778848233000,-639.18,0.00014999,2]
[422338752,1778848233000,-639.18,0.00014999,2]
[422338745,1778848233000,-639.18,0.00014999,2]
[422338753,1778848233000,-500.0,0.00014999,2]
[422338750,1778848233000,-639.18,0.00014999,2]
[422338756,1778848233000,-639.18,0.00014999,2]
[422338757,1778848233000,-639.18,0.00014999,2]
[422338758,1778848233000,-639.18,0.00014999,2]
[422338759,1778848233000,-639.18,0.00014999,2]
[422338760,1778848233000,-639.18,0.00014999,2]
[422338761,1778848233000,-639.18,0.00014999,2]
[422338762,1778848233000,-639.18,0.00014999,2]
[422338763,1778848233000,-639.18,0.00014999,2]
[422338736,1778848233000,-162.16117544,0.00014999,2]
[422338740,1778848233000,-639.18,0.00014999,2]
[422338738,1778848233000,-501.931273,0.00014999,2]
[422338739,1778848233000,-639.18,0.00014999,2]
[422338713,1778848233000,-714.61,0.00014999,2]
[422338714,1778848233000,-714.61,0.00014999,2]
[422338711,1778848233000,-714.61,0.00014999,2]
[422338716,1778848233000,-714.61,0.00014999,2]
[422338720,1778848233000,-714.61,0.00014999,2]
[422338721,1778848233000,-714.61,0.00014999,2]
[422338743,1778848233000,-639.18,0.00014999,2]
[422338717,1778848233000,-714.61,0.00014999,2]
[422338715,1778848233000,-500.0,0.00014999,2]
[422338718,1778848233000,-714.61,0.00014999,2]
[422338723,1778848233000,-714.61,0.00014999,2]
[422338733,1778848233000,-500.0,0.00014999,2]
[422338719,1778848233000,-714.61,0.00014999,2]
[422338725,1778848233000,-714.61,0.00014999,2]
[422338724,1778848233000,-714.61,0.00014999,2]
[422338731,1778848233000,-714.61,0.00014999,2]
[422338729,1778848233000,-714.61,0.00014999,2]
[422338732,1778848233000,-714.6347041,0.00014999,2]
[422338730,1778848233000,-714.61,0.00014999,2]
[422338728,1778848233000,-714.61,0.00014999,2]
[422338726,1778848233000,-714.61,0.00014999,2]
[422338734,1778848233000,-511.26367736,0.00014999,2]
[422338735,1778848233000,-500.0,0.00014999,2]
[422338737,1778848233000,-608.0,0.00014999,2]
[422338722,1778848233000,-714.61,0.00014999,2]
[422338766,1778848234000,-639.22553444,0.00014999,2]
[422338775,1778848234000,-300.0,0.00014999,2]
[422338774,1778848234000,-666.0,0.00014999,2]
[422338776,1778848234000,-300.0,0.00014999,2]
[422338764,1778848234000,-639.18,0.00014999,2]
[422338769,1778848234000,-500.0,0.00014999,2]
[422338767,1778848234000,-500.0,0.00014999,2]
[422338773,1778848234000,-300.0,0.00014999,2]
[422338765,1778848234000,-639.18,0.00014999,2]
[422338777,1778848234000,-300.0,0.00014999,2]
[422338770,1778848234000,-500.0,0.00014999,2]
[422338781,1778848234000,-33734.51013254,0.00015,2]
[422338771,1778848234000,-666.0,0.00014999,2]
[422338768,1778848234000,-500.0,0.00014999,2]
[422338784,1778848234000,-388.27807364,0.00015,2]
[422338785,1778848234000,-452.9517951,0.00015,2]
[422338783,1778848234000,-30511.59454079,0.00015,2]
[422338786,1778848234000,-508.0,0.00015,2]
[422338780,1778848234000,-120934.38762735,0.00015,2]
[422338778,1778848234000,-300.0,0.00014999,2]
[422338779,1778848234000,-1739290.80776556,0.00015,2]
[422338772,1778848234000,-300.0,0.00014999,2]
[422338782,1778848234000,-31660.65529414,0.00015,2]
[422338800,1778848237000,-774.3107541,0.00015,2]
[422338796,1778848237000,-1188.67732411,0.00015,2]
[422338795,1778848237000,-240.36241519,0.00013749,2]
[422338797,1778848237000,-76885.0,0.00015,2]
[422338798,1778848237000,-245457.71661914,0.00015,2]
[422338799,1778848237000,-564.95424345,0.00015,2]
[422338806,1778848237000,-8082.43942848,0.00015,2]
[422338804,1778848237000,-2076.06689717,0.00015,2]
[422338801,1778848237000,-357.39631745,0.00015,2]
[422338803,1778848237000,-247.96,0.00015,2]
[422338805,1778848237000,-3144.531642,0.00015,14]
[422338807,1778848237000,-5897298.43916344,0.00015,2]
[422338808,1778848237000,-326.70807302,0.00015,2]
[422338802,1778848237000,-1571690.47703946,0.00015,2]
[422338957,1778848239000,-750.0,0.00015,2]
[422338956,1778848239000,-1208.62553117,0.00015,2]
[422338958,1778848240000,-1655.35490122,0.00015,2]
[422338959,1778848240000,-483.65945066,0.00015,2]
[422338960,1778848240000,-1151.15977822,0.00015,2]
[422338986,1778848246000,-444.38778338,0.00015,2]
[422338984,1778848246000,-732.89999,0.00015,2]
[422338982,1778848246000,-162.0,0.0001488,2]
[422338985,1778848246000,-76188.79956515,0.00015,2]
[422338983,1778848246000,-12668.68125489,0.00015,2]
[422338981,1778848246000,-240.36241519,0.0001461,2]
[422339095,1778848691000,345.0,0.000301,120]
[422339096,1778848988000,351.45,0.00030137,120]
[422339097,1778849028000,151.33312549,0.00030137,120]
[422339101,1778849261000,155.03446979,0.00030136,120]
[422339110,1778849431000,-150.0,0.00013839,2]
[422339115,1778849431000,-166.66,0.00014228,2]
[422339114,1778849431000,-166.66,0.00014052,2]
[422339113,1778849431000,-250.0,0.00014,2]
[422339112,1778849431000,-550.38,0.00013971,2]
[422339108,1778849431000,-200.0,0.00013729,2]
[422339104,1778849431000,-200.0,0.000136,2]
[422339106,1778849431000,-166.24,0.00013678,2]
[422339107,1778849431000,-166.66,0.00013699,2]
[422339105,1778849431000,-1545.29184952,0.00013629,2]
[422339103,1778849431000,-150.0,0.00013598,2]